bitfinex-derivatives/quotes_ETHF0:USTF0_20251009
["timestamp","ask_amount","ask_price","bid_price","bid_amount"]
[1759972458317,4.27139269,4505.9,4505.8,1.15666]
[1759972459022,3.64903269,4505.9,4505.8,1.15666]
[1759972459314,3.32543269,4505.9,4505.8,1.15666]
[1759972459716,3.72478269,4505.9,4505.8,1.15666]
[1759972459912,4.04838269,4505.9,4505.8,0.7573]
[1759972460517,1.15778,4505.6,4505.5,3.74055873]
[1759972461615,1.15778,4505.6,4505.5,4.13994873]
[1759972461814,0.4348,4505.6,4505.5,4.71744873]
[1759972462015,0.83418,4505.6,4505.5,4.71744873]
[1759972462615,0.4348,4505.6,4505.5,4.71744873]
[1759972462920,0.83418,4505.6,4505.5,4.71744873]
[1759972463220,4.02391146,4505.6,4505.5,3.96715873]
[1759972463421,4.02391146,4505.6,4505.5,3.43305873]
[1759972463716,4.02391146,4505.6,4505.5,3.21005873]
[1759972464116,4.24691146,4505.6,4505.5,0.00225873]
[1759972464620,1.15787,4504.6,4504.5,3.2078]
[1759972465019,1.15791,4504.1,4504.0,3.2078]
[1759972465212,1.15791,4504.1,4503.5,1.72124013]
[1759972465213,1.15796,4503.6,4503.5,3.2078]
[1759972465416,0.7584,4503.6,4503.5,3.2078]
[1759972465616,3.6502854,4503.6,4503.5,3.20991013]
[1759972468018,3.8732854,4503.6,4503.5,3.20991013]
[1759972471521,3.8732854,4503.6,4503.5,0.00211013]
[1759972479517,4.2728454,4503.6,4503.5,0.00211013]
[1759972480924,4.2728454,4503.6,4503.5,0.40167013]
[1759972481423,4.2728454,4503.6,4503.5,0.00211013]
[1759972482521,0.4245,4502.6,4502.5,3.60745]
[1759972482719,0.7493,4502.6,4502.5,3.60745]
[1759972482918,0.7493,4502.6,4502.5,3.93645]
[1759972483226,1.14894,4502.6,4502.5,3.93645]
[1759972483619,1.14894,4502.6,4502.5,3.93867581]
[1759972483830,0.7493,4502.6,4502.5,3.93867581]
[1759972484122,1.14894,4502.6,4502.5,3.53902581]
[1759972484319,1.14894,4502.6,4502.5,3.60967581]
[1759972484518,4.01740798,4502.6,4502.5,3.21002581]
[1759972485421,4.01740798,4502.6,4502.5,3.60967581]
[1759972485621,3.61776798,4502.6,4502.5,3.60967581]
[1759972485815,4.01740798,4502.6,4502.5,3.60967581]
[1759972486424,4.01740798,4502.6,4502.5,3.93867581]
[1759972486624,3.61776798,4502.6,4502.5,3.93867581]
[1759972487331,4.01740798,4502.6,4502.5,3.93867581]
[1759972487525,4.01740798,4502.6,4502.5,4.16567581]
[1759972487928,3.61776798,4502.6,4502.5,4.16567581]
[1759972488129,4.01740798,4502.6,4502.5,4.16567581]
[1759972488723,4.01740798,4502.6,4502.5,3.93867581]
[1759972489227,4.01740798,4502.6,4502.5,3.60967581]
[1759972489529,4.01740798,4502.6,4502.5,3.93867581]
[1759972490323,4.01740798,4502.6,4502.5,3.60967581]
[1759972491126,4.01740798,4502.6,4502.5,0.40187581]
[1759972491329,4.01740798,4502.6,4502.5,0.00222581]
[1759972491527,4.24040798,4502.6,4502.5,0.00222581]
[1759972499533,4.76056788,4502.6,4502.5,0.00222581]
[1759972500440,4.76056788,4502.6,4501.6,3.2078]
[1759972500441,0.7477,4501.7,4501.6,3.2078]
[1759972500641,0.7477,4501.7,4501.6,3.93653]
[1759972500934,3.6308,4502.2,4502.1,1.16579]
[1759972501140,0.423,4502.2,4502.1,1.87467814]
[1759972501332,3.24960614,4502.2,4502.1,1.87647693]
[1759972501532,3.24960614,4502.2,4502.1,5.08427693]
[1759972502340,3.57430614,4502.2,4502.1,5.08427693]
[1759972502741,3.97398614,4502.2,4502.1,5.08427693]
[1759972502940,3.57430614,4502.2,4502.1,5.08427693]
[1759972503539,3.24960614,4502.2,4502.1,5.08427693]
[1759972503742,3.04300614,4502.2,4502.1,5.30727693]
[1759972504041,3.57430614,4502.2,4502.1,4.47048693]
[1759972504237,3.57430614,4502.2,4502.1,4.14148693]
[1759972504438,3.57430614,4502.2,4502.1,3.43259879]
[1759972505941,3.04300614,4502.2,4502.1,4.19869879]
[1759972506133,3.04300614,4502.2,4502.1,4.59838879]
[1759972507437,3.04300614,4502.2,4502.1,3.98859879]
[1759972507438,3.57430614,4502.2,4502.1,3.98859879]
[1759972507642,0.3247,4503.3,4502.7,0.39964]
[1759972507836,3.82377,4503.4,4503.3,0.7661]
[1759972508038,3.45825237,4503.4,4503.3,0.7661]
[1759972508339,0.82257,4503.4,4503.3,0.7661]
[1759972508644,3.24779659,4503.4,4503.3,0.7661]
[1759972509942,3.56469659,4503.4,4503.3,1.16568]
[1759972510746,3.56469659,4503.4,4503.3,0.95558]
[1759972511851,3.56469659,4503.4,4503.3,1.17858]
[1759972513946,3.04119659,4503.4,4503.3,1.39148]
[1759972514143,2.82479659,4503.4,4503.3,1.39148]
[1759972514343,0.00235536,4503.6,4503.5,1.26876]
[1759972514541,0.00235536,4503.6,4503.5,2.20064814]
[1759972515139,0.00235536,4503.6,4503.5,2.90953628]
[1759972515339,0.2061,4504.6,4504.5,1.26867]
[1759972515544,0.2061,4504.6,4504.5,1.97755814]
[1759972515740,3.14091889,4504.6,4504.5,1.26867]
[1759972515942,3.14091889,4504.6,4504.5,1.97755814]
[1759972516441,3.76741241,4504.6,4504.5,1.57808814]
[1759972516647,4.08431241,4504.6,4504.5,1.36518814]
[1759972517143,3.68484241,4504.6,4504.5,0.84198814]
[1759972517348,0.71649,4503.2,4503.1,3.2078]
[1759972517640,4.69961975,4503.2,4503.1,3.2078]
[1759972517947,3.99073161,4503.2,4503.1,3.2078]
[1759972518339,4.69961975,4503.2,4503.1,3.2078]
[1759972518739,4.69961975,4503.2,4502.7,0.223]
[1759972518740,0.83074,4502.6,4502.5,3.2078]
[1759972518941,1.14764,4502.6,4502.5,3.4308]
[1759972519240,4.08066989,4502.6,4502.5,3.4308]
[1759972519935,4.08066989,4502.6,4502.5,3.2078]
[1759972520136,5.01255803,4502.6,4502.5,3.2078]
[1759972520546,0.748,4502.2,4502.0,3.4308]
[1759972520949,4.06544607,4502.2,4502.0,3.4308]
[1759972522549,0.2061,4502.4,4502.3,0.2129]
[1759972522748,0.2061,4502.4,4502.3,1.44498814]
[1759972523042,3.11962283,4502.4,4502.3,1.44498814]
[1759972523249,2.91352283,4502.7,4502.6,0.82034]
[1759972523446,0.2061,4503.1,4503.0,0.5538]
[1759972523642,0.71646,4503.6,4503.4,0.2078]
[1759972523643,0.83067,4503.5,4503.4,0.2078]
[1759972524050,3.99497897,4503.5,4503.4,0.5232]
[1759972525556,1.14758,4503.3,4503.2,0.5384]
[1759972525850,0.223,4503.6,4503.4,0.7361]
[1759972525851,0.39956,4503.6,4503.4,0.7361]
[1759972526050,0.4311,4503.5,4503.4,0.7361]
[1759972526250,3.30807408,4503.5,4503.4,0.7361]
[1759972526650,3.62497408,4503.5,4503.4,0.7361]
[1759972527350,3.62497408,4503.5,4503.4,0.9591]
[1759972529665,3.73267408,4503.5,4503.4,0.223]
[1759972529867,0.748,4503.1,4503.0,4.26371]
[1759972530065,0.748,4503.1,4503.0,4.0871]
[1759972530271,0.748,4503.1,4503.0,0.5384]
[1759972531565,0.748,4503.1,4503.0,0.223]
[1759972532269,0.2061,4503.4,4503.3,0.82028]
[1759972532463,0.748,4503.4,4503.3,0.7361]
[1759972532668,3.67280565,4503.4,4503.3,0.5232]
[1759972533564,3.67280565,4503.4,4503.3,0.3154]
[1759972533759,0.748,4503.1,4502.2,2.44540313]
[1759972533965,1.14765,4502.5,4502.1,0.00179879]
[1759972534270,4.1662358,4502.5,4502.3,0.223]
[1759972534973,4.1662358,4502.5,4502.3,0.62267]
[1759972535174,4.1662358,4502.5,4502.3,0.223]
[1759972535671,4.1662358,4502.5,4502.3,0.62267]
[1759972535876,3.7665858,4502.5,4502.4,3.60746]
[1759972536068,4.1662358,4502.5,4502.4,3.60746]
[1759972537176,4.0926358,4502.5,4502.4,3.60746]
[1759972539677,4.0926358,4502.5,4502.4,0.39966]
[1759972540380,1.18136,4502.4,4502.3,0.223]
[1759972540582,1.18136,4502.4,4502.3,0.5345]
[1759972540880,4.0616634,4502.4,4502.3,0.93417]
[1759972541274,3.6620034,4502.4,4501.0,0.1331]
[1759972541475,7.8803034,4502.4,4498.0,0.1267]
[1759972541672,7.8803034,4502.4,4493.4,14.011]
[1759972541673,2.77901709,4498.3,4496.5,0.1267]
[1759972541880,2.77901709,4496.6,4496.5,0.1267]
[1759972542078,3.57985695,4496.6,4496.0,0.1267]
[1759972542275,0.40027,4495.6,4495.5,0.1267]
[1759972542581,0.40027,4495.6,4495.0,0.1267]
[1759972542582,0.4003,4495.3,4495.0,0.1267]
[1759972542774,5.98681709,4495.1,4495.0,0.11441793]
[1759972542974,6.78765695,4495.1,4495.0,0.11441793]
[1759972543277,3.67264558,4495.1,4495.0,0.11665222]
[1759972543478,3.67264558,4495.1,4495.0,2.01066914]
[1759972543668,0.80083986,4495.1,4495.0,7.34616914]
[1759972543869,3.2078,4496.4,4496.1,0.3355]
[1759972544172,10.00189,4497.8,4496.1,0.3355]
[1759972544173,3.2078,4497.1,4496.5,0.4614]
[1759972544373,3.20973626,4496.6,4496.5,1.68108352]
[1759972544681,2.86638294,4496.6,4496.5,1.68108352]
[1759972545075,2.86638294,4496.6,4496.5,0.42556512]
[1759972545277,2.86638294,4496.6,4493.4,3.2078]
[1759972545278,0.40038,4494.4,4493.4,3.2078]
[1759972545472,2.77901709,4494.2,4494.0,0.1259]
[1759972545980,3.2078,4495.0,4494.0,0.1259]
[1759972545981,2.90578572,4494.1,4494.0,0.3489]
[1759972546178,2.90578572,4494.1,4494.0,0.1259]
[1759972546379,0.4004,4494.1,4494.0,0.1259]
[1759972546579,0.223,4494.1,4494.0,0.12838381]
[1759972546881,3.09859412,4494.1,4494.0,0.12838381]
[1759972547269,3.09859412,4494.1,4494.0,0.46388381]
[1759972547882,2.87559412,4494.1,4494.0,1.71940221]
[1759972548282,3.2078,4494.5,4494.0,1.71940221]
[1759972548283,0.40038,4494.3,4494.1,0.3355]
[1759972548472,0.223,4494.2,4494.1,0.3355]
[1759972548671,3.17418655,4494.2,4494.1,0.3355]
[1759972548876,3.17418655,4494.2,4493.1,0.34676251]
[1759972548877,0.40047,4493.4,4493.1,0.34676251]
[1759972549076,3.17949709,4493.2,4493.1,0.34676251]
[1759972549275,3.684,4489.7,4487.5,0.1259]
[1759972549483,3.2078,4490.6,4487.5,0.1259]
[1759972549484,0.40085,4489.1,4489.0,0.1259]
[1759972549779,3.2078,4489.1,4489.0,0.1259]
[1759972549987,6.376254,4489.1,4489.0,0.12867354]
[1759972550182,6.153254,4489.1,4489.0,0.12867354]
[1759972550583,6.153254,4489.1,4489.0,1.38419194]
[1759972550781,6.153254,4489.1,4489.0,0.12867354]
[1759972551079,6.153254,4489.1,4489.0,0.46417354]
[1759972551476,3.2078,4490.3,4489.5,0.40081]
[1759972551678,3.2078,4490.0,4489.9,0.3355]
[1759972551883,2.91947354,4490.2,4489.9,0.3355]
[1759972552083,3.2078,4491.8,4491.2,0.1259]
[1759972552290,1.17129733,4492.8,4490.5,0.1259]
[1759972552291,3.17967709,4491.2,4490.5,0.1259]
[1759972552486,3.2078,4490.6,4490.5,0.1259]
[1759972552680,0.40077,4490.0,4489.9,0.3355]
[1759972552883,3.2078,4490.0,4489.9,0.3355]
[1759972553185,6.04616098,4490.0,4489.8,0.1259]
[1759972553377,3.2078,4490.0,4489.8,0.1259]
[1759972553584,2.83836098,4489.9,4489.8,0.1259]
[1759972553883,3.2078,4490.7,4489.8,0.1259]
[1759972553884,0.223,4490.0,4489.8,0.1259]
[1759972554387,3.2078,4490.2,4489.8,0.1259]
[1759972554388,2.92359495,4489.9,4489.8,0.1259]
[1759972554783,2.88516421,4490.0,4489.8,0.1259]
[1759972554982,3.2078,4490.2,4489.8,0.1259]
[1759972555283,2.88516421,4490.0,4489.9,0.3355]
[1759972555683,3.2078,4490.5,4490.0,0.73626]
[1759972555988,2.91067657,4490.4,4490.2,0.40074]
[1759972556186,2.91067657,4490.4,4490.3,0.3355]
[1759972556687,3.20993582,4491.2,4490.8,0.3355]
[1759972556888,3.20993582,4491.2,4490.9,0.3355]
[1759972557077,2.88259721,4491.1,4490.9,0.3355]
[1759972557279,2.88259721,4491.1,4491.0,0.3355]
[1759972557478,5.8846143,4491.1,4491.0,0.1727493]
[1759972558091,11.53236453,4491.1,4490.5,0.1259]
[1759972558389,3.60851,4490.6,4490.5,0.11751552]
[1759972558579,4.25603236,4490.6,4490.5,0.11751552]
[1759972558782,6.04620244,4490.6,4490.5,0.11751552]
[1759972559779,2.83840244,4490.6,4490.5,0.11751552]
[1759972559983,0.00213582,4491.2,4491.0,0.1259]
[1759972560183,2.89463492,4491.1,4491.0,0.4614]
[1759972560486,0.40051,4492.9,4492.8,0.4614]
[1759972560687,3.83131,4492.9,4492.8,0.4614]
[1759972560986,3.85588699,4492.9,4492.8,0.42939361]
[1759972561190,6.05620428,4492.9,4492.8,0.42939361]
[1759972561490,6.0587966,4492.9,4492.8,0.43135143]
[1759972561793,6.92780613,4492.9,4492.8,0.43135143]
[1759972562291,11.92780613,4492.9,4492.8,0.43135143]
[1759972562600,11.92780613,4492.9,4492.2,0.1259]
[1759972562601,0.40056,4492.3,4492.2,0.4614]
[1759972562782,6.61037709,4492.3,4492.2,0.4614]
[1759972562986,6.92152869,4492.3,4492.2,0.4614]
[1759972563385,6.92152869,4492.3,4492.2,0.46366383]
[1759972563591,6.69852869,4492.3,4492.2,0.46366383]
[1759972564493,7.09908869,4492.3,4492.2,0.46366383]
[1759972564694,6.69852869,4492.3,4492.2,0.46366383]
[1759972569293,6.69852869,4492.3,4492.2,5.46366383]
[1759972569489,3.49072869,4492.3,4492.2,5.46366383]
[1759972569690,0.64600953,4492.3,4492.2,5.46366383]
[1759972569889,4.3529462,4492.8,4492.7,0.341]
[1759972570193,6.73593474,4492.8,4492.7,0.341]
[1759972571091,3.84814492,4492.8,4492.7,5.564]
[1759972571687,0.64034492,4492.8,4492.7,5.564]
[1759972571895,1.81020889,4492.8,4492.7,5.564]
[1759972572193,0.00259232,4492.9,4492.8,0.74152]
[1759972572785,0.00259232,4492.9,4492.5,0.1366]
[1759972572786,0.40053,4492.6,4492.5,0.1366]
[1759972572986,0.62353,4492.6,4492.5,0.1366]
[1759972573190,1.00147,4492.1,4491.0,0.1259]
[1759972573389,6.38742709,4491.7,4491.0,0.1259]
[1759972573593,7.13197543,4491.7,4491.0,0.1259]
[1759972573794,10.06924792,4491.7,4491.0,0.1259]
[1759972574294,10.06924792,4491.7,4491.6,0.128375]
[1759972574691,15.06924792,4491.7,4491.6,0.128375]
[1759972574993,15.06924792,4491.7,4491.6,0.469375]
[1759972574994,10.06924792,4491.7,4491.6,0.469375]
[1759972576398,11.23911189,4491.7,4491.6,0.469375]
[1759972577102,10.06924792,4491.7,4491.6,0.469375]
[1759972579795,7.29023083,4491.7,4491.6,0.469375]
[1759972580896,7.06723083,4491.7,4491.6,0.469375]
[1759972581401,6.66662083,4491.7,4491.6,5.469375]
[1759972581800,6.66662083,4491.7,4491.6,5.869995]
[1759972582702,6.66662083,4491.7,4491.6,0.469375]
[1759972582899,8.06591925,4491.7,4491.6,0.469375]
[1759972583104,6.88962083,4491.7,4491.6,0.469375]
[1759972583701,0.40067,4491.1,4491.0,0.1259]
[1759972583896,4.13001834,4491.1,4491.0,0.1259]
[1759972584102,6.9713896,4491.1,4491.0,0.1259]
[1759972584700,6.44984126,4491.1,4491.0,0.1259]
[1759972584901,6.44984126,4491.1,4491.0,0.12833646]
[1759972585303,6.44984126,4491.1,4490.5,0.1366]
[1759972585304,0.40071,4490.6,4490.5,0.1366]
[1759972585504,3.2078,4490.6,4490.5,0.1366]
[1759972585709,6.04737305,4490.6,4490.5,0.1366]
[1759972585910,6.50906691,4490.6,4490.5,0.4776]
[1759972586217,6.04737305,4490.6,4490.5,5.4776]
[1759972586418,2.77901709,4492.2,4491.0,0.87828]
[1759972586419,3.2078,4491.1,4491.0,0.87828]
[1759972586818,3.2078,4491.1,4491.0,5.87828]
[1759972588109,3.2078,4491.1,4491.0,5.4776]
[1759972588110,6.13643973,4491.1,4491.0,5.4776]
[1759972588315,6.13643973,4491.1,4491.0,5.7016]
[1759972588515,6.13643973,4491.1,4491.0,0.4776]
[1759972589319,6.13643973,4491.1,4491.0,0.7016]
[1759972589515,6.13643973,4491.1,4491.0,0.4776]
[1759972589724,6.82070453,4491.1,4491.0,0.4776]
[1759972589919,0.40071,4490.6,4490.5,0.1384256]
[1759972590115,7.07179189,4490.6,4490.5,0.1384256]
[1759972590419,9.97603449,4490.6,4490.5,0.1384256]
[1759972591422,14.97603449,4490.6,4490.5,5.6e-06]
[1759972593023,0.40076,4490.1,4490.0,0.0366056]
[1759972593215,0.4008,4489.6,4489.5,0.1366]
[1759972593411,3.6086,4489.6,4489.5,0.1366]
[1759972593614,6.46861489,4489.6,4489.5,0.1366]
[1759972593915,6.46861489,4489.6,4489.5,0.4776]
[1759972594114,6.47113021,4489.6,4489.5,0.4799593]
[1759972594722,6.07033021,4489.6,4489.5,5.4799593]
[1759972595025,2.86253021,4489.6,4489.5,5.7039593]
[1759972595915,0.00251532,4489.6,4489.5,5.7039593]
[1759972596115,0.00251532,4489.6,4489.5,8.9117593]
[1759972596624,3.2078,4490.6,4490.5,0.4776]
[1759972596815,3.2078,4490.6,4490.5,0.7016]
[1759972597011,6.11893582,4490.6,4490.5,0.7016]
[1759972597516,6.12114914,4490.6,4490.5,5.7016]
[1759972597717,0.00221332,4490.6,4490.5,5.7016]
[1759972597917,0.00221332,4490.6,4490.5,8.9094]
[1759972599618,2.77901709,4492.2,4492.1,0.3537]
[1759972599619,3.2078,4492.2,4492.1,0.3537]
[1759972599923,3.2078,4492.2,4492.1,0.5777]
[1759972600513,3.2078,4493.2,4493.1,0.3537]
[1759972600719,3.21035377,4493.2,4493.1,0.35597039]
[1759972600918,6.15461481,4493.2,4493.1,0.35597039]
[1759972601530,2.94681481,4493.2,4493.1,0.35597039]
[1759972601825,2.94681481,4493.2,4493.1,0.57997039]
[1759972602213,2.94681481,4493.2,4493.1,0.35597039]
[1759972602431,0.00255377,4493.2,4493.1,0.57997039]
[1759972603725,0.00255377,4493.2,4493.1,0.35597039]
[1759972603927,0.00255377,4493.2,4493.1,0.57997039]
[1759972605229,0.00255377,4493.2,4493.1,0.35597039]
[1759972605531,0.00255377,4493.2,4493.1,0.57997039]
[1759972607419,2.00134,4495.7,4494.1,0.4004]
[1759972607420,3.2078,4494.2,4494.1,0.4004]
[1759972607621,3.2078,4494.2,4494.1,0.9749]
[1759972607919,6.13764189,4494.2,4494.1,0.9749]
[1759972608425,6.13947095,4494.2,4494.1,0.9749]
[1759972608819,0.00182906,4494.2,4494.1,0.9749]
[1759972612030,0.00182906,4494.2,4494.1,0.7509]
[1759972612233,0.00182906,4494.2,4494.1,0.9749]
[1759972614233,3.2078,4495.7,4495.5,0.1433]
[1759972614433,3.2078,4496.2,4496.0,0.1433]
[1759972614736,3.2078,4496.2,4496.1,0.3505]
[1759972615136,6.07366561,4496.2,4496.1,0.3505]
[1759972618234,8.42409172,4496.2,4496.1,0.5745]
[1759972618733,6.07366561,4496.2,4496.1,0.5745]
[1759972620935,0.00193747,4496.2,4496.1,0.5745]
[1759972621437,0.00193747,4496.2,4496.1,5.5745]
[1759972622033,0.00193747,4496.2,4496.1,0.5745]
[1759972626238,0.00193747,4496.2,4496.1,0.3505]
[1759972626429,0.00193747,4496.2,4496.1,0.5745]
[1759972628635,2.00004,4498.6,4496.1,0.5745]
[1759972628636,0.022,4497.9,4497.8,0.75397]
[1759972628942,0.022,4497.9,4497.8,3.96177]
[1759972629241,0.022,4497.9,4497.8,0.97797]
[1759972629439,0.02479031,4497.9,4497.8,0.97982343]
[1759972631840,0.02479031,4497.9,4497.8,0.57975343]
[1759972634150,1.17629842,4500.7,4500.0,0.4997]
[1759972634339,0.99949,4501.0,4500.5,0.1458]
[1759972634340,0.39982,4500.6,4500.5,0.1458]
[1759972634545,3.60762,4500.6,4500.5,0.1458]
[1759972634844,6.543762,4500.6,4500.5,0.1458]
[1759972635145,6.14681964,4500.6,4500.5,0.4997]
[1759972636245,11.14681964,4500.6,4500.5,0.4997]
[1759972636440,0.39987,4500.1,4500.0,0.4997]
[1759972636641,3.60767,4500.1,4500.0,0.4997]
[1759972636842,11.52223636,4500.1,4500.0,0.4997]
[1759972637842,6.52223636,4500.1,4500.0,0.4997]
[1759972638042,6.12236636,4500.1,4500.0,0.4997]
[1759972641948,2.91456636,4500.1,4500.0,0.4997]
[1759972642448,3.21067764,4500.6,4500.5,0.1458]
[1759972642646,3.21067764,4500.6,4500.5,0.4997]
[1759972642952,6.05095043,4500.6,4500.5,0.4997]
[1759972643849,3.21067764,4500.6,4500.5,0.4997]
[1759972644044,6.09562866,4500.6,4500.5,0.7237]
[1759972644350,6.09562866,4500.6,4500.5,0.4997]
[1759972645243,2.88782866,4500.6,4500.5,0.4997]
[1759972645444,0.00287764,4500.6,4500.5,0.4997]
[1759972646452,0.00287764,4500.6,4500.5,0.7237]
[1759972647354,0.00287764,4500.6,4500.5,0.4997]
[1759972647652,2.87469344,4500.6,4500.5,0.7237]
[1759972647946,2.87469344,4500.6,4500.5,0.4997]
[1759972648339,2.87469344,4500.6,4500.5,0.7237]
[1759972648543,2.87469344,4500.6,4500.5,0.4997]
[1759972648744,2.87469344,4500.6,4500.5,0.7237]
[1759972649852,2.87469344,4500.6,4500.5,0.4997]
[1759972650046,2.87469344,4500.6,4500.5,0.7237]
[1759972652053,2.87469344,4500.6,4500.5,47.2737]
[1759972652255,0.00287764,4500.6,4500.5,47.2737]
[1759972655045,2.35042611,4502.2,4500.5,47.2737]
[1759972655046,3.2078,4501.6,4501.5,0.54554]
[1759972655253,3.2078,4502.1,4501.7,0.39972]
[1759972655452,6.03016767,4502.1,4502.0,0.4997]
[1759972655752,3.2078,4502.1,4502.0,0.4997]
[1759972655952,6.06128823,4502.1,4502.0,0.4997]
[1759972656149,6.06341215,4502.1,4502.0,0.50257001]
[1759972656951,0.00212392,4502.1,4502.0,0.50257001]
[1759972657148,6.13989737,4502.1,4502.0,0.72657001]
[1759972657350,6.13989737,4502.1,4502.0,0.50257001]
[1759972657658,6.13989737,4502.1,4502.0,0.72657001]
[1759972658251,6.13989737,4502.1,4502.0,0.50257001]
[1759972658758,6.13989737,4502.1,4502.0,0.72657001]
[1759972660359,2.93209737,4502.1,4502.0,0.72657001]
[1759972660761,0.00212392,4502.1,4502.0,0.72657001]
[1759972663260,3.2078,4502.6,4502.1,0.99923]
[1759972663464,3.2078,4502.6,4502.5,0.1357]
[1759972663763,6.08472452,4502.6,4502.5,0.7182]
[1759972664362,6.08713266,4502.6,4502.5,1.11785]
[1759972665156,6.08713266,4502.6,4502.5,0.89485]
[1759972665362,3.21020814,4502.6,4502.5,1.11785]
[1759972665657,0.00240814,4502.6,4502.5,1.11785]
[1759972668862,0.00240814,4502.6,4502.5,1.57765]
[1759972673960,0.022,4502.9,4502.8,0.4598]
[1759972674258,0.022,4502.9,4502.8,1.44193]
[1759972674566,0.022,4502.9,4502.8,1.73995367]
[1759972674760,3.2078,4503.6,4503.5,1.35456]
[1759972674959,3.21004331,4503.6,4503.5,1.87558367]
[1759972675158,6.09533927,4503.6,4503.5,1.87558367]
[1759972675856,6.09533927,4503.6,4503.5,1.47602367]
[1759972676062,6.09533927,4503.6,4503.5,1.87558367]
[1759972676457,6.09533927,4503.6,4503.5,1.65258367]
[1759972676662,6.09533927,4503.6,4503.5,1.87558367]
[1759972679069,6.09533927,4503.6,4503.5,1.57756]
[1759972680168,6.09533927,4503.6,4503.5,0.7195]
[1759972680365,11.49489927,4503.6,4503.5,0.4952]
[1759972680672,11.49489927,4503.6,4503.5,0.7182]
[1759972680964,11.96269992,4503.6,4503.5,0.1357]
[1759972681267,0.3996,4503.1,4503.0,0.4952]
[1759972681465,0.39964,4502.6,4502.5,0.1357]
[1759972681668,0.39967,4502.3,4502.1,0.3595]
[1759972681865,0.39969,4502.1,4502.0,0.14867001]
[1759972682073,3.67560065,4502.1,4502.0,0.50817001]
[1759972682267,6.57999947,4502.1,4502.0,0.50817001]
[1759972682465,11.57999947,4502.1,4502.0,0.50817001]
[1759972682664,11.57999947,4502.1,4502.0,0.14867001]
[1759972682864,11.11219882,4502.1,4502.0,0.14867001]
[1759972683166,11.11219882,4502.1,4502.0,0.50817001]
[1759972684463,11.11219882,4502.1,4502.0,0.14867001]
[1759972684667,0.39973,4501.6,4501.5,0.4952]
[1759972684867,3.60753,4501.6,4501.5,0.1357]
[1759972685071,6.50018498,4501.6,4501.5,0.1357]
[1759972685468,6.50018498,4501.6,4501.1,0.3595]
[1759972685469,0.39977,4501.2,4501.0,0.1357]
[1759972685664,3.2078,4501.1,4501.0,0.49712022]
[1759972685862,6.08446468,4501.1,4501.0,0.49712022]
[1759972686681,2.87666468,4501.1,4501.0,0.72142022]
[1759972686868,2.87666468,4501.1,4501.0,0.95692022]
[1759972687171,3.2078,4501.6,4501.0,0.95692022]
[1759972687172,0.39977,4501.2,4501.1,0.3595]
[1759972687574,3.29341562,4501.2,4501.1,0.3595]
[1759972688573,2.89364562,4501.2,4501.1,0.3595]
[1759972688875,0.39976,4501.3,4501.1,0.3595]
[1759972689073,0.39978,4501.1,4501.0,0.13762022]
[1759972689274,3.60758,4501.1,4501.0,0.13762022]
[1759972689475,6.5345193,4501.1,4501.0,0.13762022]
[1759972689674,6.5345193,4501.1,4501.0,0.47632022]
[1759972691077,11.5345193,4501.1,4501.0,0.13762022]
[1759972691578,11.5345193,4501.1,4500.5,47.0244]
[1759972691579,0.39982,4500.6,4500.5,47.0244]
[1759972691875,6.50613765,4500.6,4500.5,47.0244]
[1759972692785,6.50613765,4500.6,4500.5,47.02650077]
[1759972694877,3.2078,4501.7,4501.6,0.3387]
[1759972695182,2.84916252,4501.6,4501.5,0.1329]
[1759972695579,6.67969252,4501.7,4501.5,0.1329]
[1759972695884,3.83053,4501.7,4501.5,0.1329]
[1759972696072,2.84916252,4501.6,4501.1,0.3387]
[1759972696272,3.60758,4501.2,4501.0,0.1329]
[1759972696472,0.39979,4501.0,4500.5,47.08763077]
[1759972696683,2.83479827,4501.1,4500.6,0.3387]
[1759972696981,0.39978,4501.1,4501.0,0.1329]
[1759972697184,3.23821347,4501.1,4501.0,0.1329]
[1759972697980,3.23821347,4501.1,4501.0,0.4716]
[1759972698587,8.23821347,4501.1,4501.0,0.1329]
[1759972698788,8.23821347,4501.1,4500.5,46.68780077]
[1759972698789,0.99947,4501.0,4500.5,46.68780077]
[1759972699083,3.2078,4500.6,4500.5,46.68780077]
[1759972699481,6.05757135,4500.6,4500.5,46.68780077]
[1759972699682,11.05757135,4500.6,4500.5,43.46500077]
[1759972699876,11.05757135,4500.6,4500.5,27.82806992]
[1759972700078,11.05757135,4500.6,4500.5,27.12006992]
[1759972700288,11.53251695,4500.6,4500.5,27.12006992]
[1759972700488,11.05757135,4500.6,4500.5,26.36597992]
[1759972700989,11.53216947,4500.6,4500.5,25.15058992]
[1759972701181,11.53216947,4500.6,4500.5,24.55591992]
[1759972701488,11.53197369,4500.6,4500.5,20.83256487]
[1759972701681,11.53197369,4500.6,4500.5,20.02239487]
[1759972701882,11.53197369,4500.6,4500.5,18.60911487]
[1759972702082,11.53197369,4500.6,4500.5,15.49209633]
[1759972702282,11.53197369,4500.6,4500.5,13.66377706]
[1759972702484,6.53197369,4500.6,4500.5,12.55251779]
[1759972702680,6.05757135,4500.6,4500.5,12.55251779]
[1759972702881,6.28157135,4500.6,4500.5,12.55251779]
[1759972704088,6.75583321,4500.6,4500.5,12.55251779]
[1759972704291,11.75583321,4500.6,4500.5,11.60598779]
[1759972704488,11.75583321,4500.6,4500.5,11.15943779]
[1759972704793,11.75583321,4500.6,4500.5,10.68837779]
[1759972704983,11.75583321,4500.6,4500.5,9.69956779]
[1759972705191,11.75583321,4500.6,4500.5,8.35636642]
[1759972705387,11.75583321,4500.6,4500.5,6.90867642]
[1759972705787,11.75583321,4500.6,4500.5,6.22063642]
[1759972705990,11.75583321,4500.6,4500.5,5.53812642]
[1759972706290,11.75583321,4500.6,4500.5,2.42152642]
[1759972706490,11.75583321,4500.6,4500.5,1.81329642]
[1759972706681,11.75583321,4500.6,4500.5,1.15526642]
[1759972706884,0.99958,4500.5,4500.0,0.02889294]
[1759972707085,6.38657192,4500.1,4500.0,0.02889294]
[1759972707285,12.08483378,4500.1,4500.0,0.02889294]
[1759972707494,14.99050507,4500.1,4500.0,2.94e-06]
[1759972707883,14.99239241,4500.1,4500.0,0.00203633]
[1759972708391,12.21349049,4500.1,4500.0,0.00203633]
[1759972708984,12.21349049,4500.1,4500.0,0.34073633]
[1759972710294,7.21349049,4500.1,4500.0,0.34073633]